[Event "10th Cherry Blossom Classic 2023"]
[Site "Dulles"]
[Date "2023.05.25"]
[Round "1.16"]
[White "Slade, Theodore"]
[Black "Kiewra, Keaton"]
[Result "1/2-1/2"]
[ECO "D37"]
[WhiteElo "2021"]
[BlackElo "2352"]
[Annotator "TA"]
[PlyCount "91"]
[EventDate "2023.05.24"]
[EventType "swiss"]
[EventCountry "USA"]
[SourceTitle "playchess.com"]
[Source "ChessBase"]
[SourceQuality "1"]
[TimeControl "5400+30"]

{[%evp 9,91,27,22,27,22,29,40,19,27,21,59,56,89,79,121,114,182,131,284,122,124,95,133,151,275,183,182,106,122,111,125,38,78,83,80,78,78,62,47,0,0,0,6,12,9,10,9,0,76,78,69,75,88,89,97,86,127,96,100,95,91,79,72,37,53,37,36,22,27,8,14,8,8,8,8,8,14,14,14,8,8,8,8,8]} 1. d4 {[%emt 0:00:02]} d5 {[%emt 0:00:14]} 2. c4 {[%emt 0:00:08]} e6 {[%emt 0:00:04]} 3. Nf3 {[%emt 0:00:17]} a6 {[%emt 0:01:17]} 4. cxd5 {[%emt 0:00:23]} exd5 {[%emt 0:00:06]} 5. Nc3 {[%emt 0:00:10]} Nf6 {[%emt 0:00:47]} 6. Bg5 {[%emt 0:00:43] D37: Queen's Gambit Declined: 5 Bf4.} Be7 {[%emt 0:00:57]} 7. e3 {[%emt 0:05:47]} O-O {[%emt 0:00:57]} 8. Bd3 {[%emt 0:01:42] White is slightly better.} h6 {[%emt 0:00:21]} 9. Bh4 {[%emt 0:05:19]} b6 {[%emt 0:00:53]} 10. O-O {[%emt 0:08:09]} Be6 {[%emt 0:03:17]} 11. Ne5 {[%emt 0:06:09]} c5 {[%emt 0:01:31]} 12. f4 {[%emt 0:00:47] [#] White is much more active.} b5 $146 {[%emt 0:03:40]} (12... Ra7 $16 13. Qf3 Qd6) ({Predecessor:} 12... Qd6 13. f5 Bc8 14. Bg3 Qd8 15. Qf3 Bb7 16. Rad1 cxd4 17. exd4 Nc6 18. Bb1 Re8 {1-0 Kurukin,D (2179)-Gvanceladze,A (2069) Moscow Petrosian Memorial U18 2008 (2)}) 13. Qf3 {[%emt 0:08:13]} (13. Bc2 $18) 13... b4 $2 {[%emt 0:02:24]} (13... Ra7 $16 {was necessary.} 14. dxc5 b4) 14. Ne2 {[%emt 0:00:47]} (14. f5 $1 $18 {[%cal Rf5e6] and the rest is easy.} bxc3 15. fxe6 fxe6 16. bxc3) 14... Ra7 $16 {[%emt 0:02:49]} 15. b3 {[%emt 0:13:36]} ({But not} 15. Bxf6 Bxf6 16. b3 (16. dxc5 Bxe5 17. fxe5 Nd7 $11) 16... Rc7 $14) 15... Ne4 {[%emt 0:10:57]} 16. Bxe7 {[%emt 0:01:08]} Rxe7 {[%emt 0:00:15]} (16... Qxe7 $16 17. Bxe4 dxe4 18. Qxe4 Re8 19. dxc5 {[%mdl 64] Discovered Attack} f6) 17. Bxe4 {[%emt 0:07:37]} dxe4 {[%emt 0:00:21]} 18. Qxe4 {[%emt 0:00:25]} (18. Qg3 $18 {aiming for f5.} Qc8 19. dxc5) 18... Bd5 {[%emt 0:00:25] [#]} 19. Qd3 {[%emt 0:01:24]} Nd7 {[%emt 0:04:09]} 20. Nxd7 {[%emt 0:02:33]} (20. Ng3 $16) 20... Qxd7 {[%emt 0:00:53]} 21. dxc5 {[%emt 0:05:38] Strongly threatening Rad1.} Qb7 {[%emt 0:00:50] [#]} 22. Rf2 $1 {[%emt 0:00:40]} Rfe8 {[%emt 0:00:30]} 23. Rd1 {[%emt 0:06:19]} Bc6 {[%emt 0:00:41]} 24. Nd4 {[%emt 0:01:28]} (24. Ng3 $5 {[%cal Rg3f5]}) 24... Rxe3 {[%emt 0:00:11]} 25. Qd2 {[%emt 0:00:28] Nf5 would be deadly.} Rc3 $1 {[%emt 0:01:29]} 26. Nf5 {[%emt 0:03:34] Threatens to win with Nd6.} Qa7 $1 {[%emt 0:00:29]} 27. Qd4 $36 {[%emt 0:01:13][%csl Gf5,LRb4,LRg7][%cal Rd4g7][%mdl 2048] White has good play.} f6 {[%emt 0:00:06]} 28. Qxb4 {[%emt 0:02:36]} (28. Nd6 {keeps more tension.} Rb8 29. Ne4 Bxe4 30. Qxe4 Qxc5 31. h3) 28... Qxc5 {[%emt 0:00:47]} (28... Rxc5 $11 {keeps the balance.} 29. Nd4 Be4) 29. Qxc5 {[%emt 0:00:26]} Rxc5 {[%emt 0:00:05]} 30. Nd4 {[%emt 0:01:59]} Rd8 {[%emt 0:01:42]} 31. Rfd2 {[%emt 0:00:24]} Be4 {[%emt 0:00:14]} 32. Kf2 {[%emt 0:01:55]} f5 {[%emt 0:00:27]} 33. Nf3 {[%emt 0:01:26]} ({Much less strong is} 33. Ne6 Rxd2+ 34. Rxd2 Rc8) 33... Rc2 {[%emt 0:00:39]} 34. Rxc2 {[%emt 0:02:21]} Rxd1 {[%emt 0:00:06][%mdl 4096] Endgame KRB-KRN} 35. Rb2 {[%emt 0:00:24]} Kf7 {[%emt 0:00:27]} 36. b4 {[%emt 0:00:58]} Ra1 {[%emt 0:01:19]} 37. Nd4 {[%emt 0:03:46]} g5 {[%emt 0:01:20]} 38. fxg5 {[%emt 0:01:52]} hxg5 {[%emt 0:00:06]} 39. b5 {[%emt 0:00:42]} Rd1 {[%emt 0:01:35] The position is equal.} 40. Nf3 {[%emt 0:01:46]} Bxf3 {[%emt 0:00:10]} 41. Kxf3 {[%emt 0:00:40] Black must now prevent b6.} axb5 {[%emt 0:00:06]} 42. Rxb5 $11 {[%emt 0:00:12] KR-KR} Rd3+ {[%emt 0:00:05]} 43. Ke2 {[%emt 0:01:36]} Ra3 {[%emt 0:00:05]} 44. Rb2 {[%emt 0:00:08]} f4 {[%emt 0:01:27]} 45. h3 {[%emt 0:00:59]} Kg6 {[%emt 0:00:17]} 46. Kf2 {[%emt 0:01:24] White really could win this.   Weighted Error Value: White=0.23 (precise) /Black=0.23 (precise)} 1/2-1/2

[Event "10th Cherry Blossom Classic 2023"]
[Site "Dulles"]
[Date "2023.05.25"]
[Round "1.17"]
[White "Plotkin, Mark"]
[Black "Samuelson, Andrew"]
[Result "1/2-1/2"]
[ECO "A30"]
[WhiteElo "2341"]
[BlackElo "2019"]
[Annotator "TA"]
[PlyCount "113"]
[EventDate "2023.05.24"]
[EventType "swiss"]
[EventCountry "USA"]
[SourceTitle "playchess.com"]
[Source "ChessBase"]
[SourceQuality "1"]
[TimeControl "5400+30"]

{[%evp 21,113,19,51,22,54,51,79,72,69,56,61,68,81,87,95,-205,-199,-246,-233,-239,-215,-176,-170,-222,-212,-200,-133,-130,0,0,0,0,0,0,0,-98,6,-179,-152,-147,-26,-24,-22,-26,-47,-27,-2,-8,0,-8,0,0,0,0,0,0,0,0,0,0,0,-8,-8,-52,-52,-52,0,0,0,0,0,-8,0,-4,-4,-4,-4,-4,8,8,8,-8,-8,-8,-8,-8,-8,-8,-8,-8,-8,-8,0,0]} 1. c4 {[%emt 0:00:02]} c5 {[%emt 0:00:14]} 2. Nc3 {[%emt 0:00:05]} b6 {[%emt 0:00:56]} 3. g3 {[%emt 0:04:26]} Bb7 {[%emt 0:00:06]} 4. Nf3 {[%emt 0:00:04]} Nf6 {[%emt 0:00:35]} 5. Bg2 {[%emt 0:00:15]} e6 {[%emt 0:00:52]} 6. O-O {[%emt 0:00:15]} Be7 {[%emt 0:00:18]} 7. d4 {[%emt 0:10:36]} cxd4 {[%emt 0:00:52]} 8. Nxd4 {[%emt 0:00:20]} Bxg2 {[%emt 0:00:14]} 9. Kxg2 {[%emt 0:00:02]} Qc7 {[%emt 0:02:29]} 10. b3 {[%emt 0:01:41]} a6 {[%emt 0:04:16]} 11. Bb2 {[%emt 0:00:54]} d6 {[%emt 0:01:07]} 12. e4 {[%emt 0:00:32] A30: Symmetrical English: Double Fianchetto and Hedgehog.} Nbd7 {[%emt 0:00:12]} 13. f4 {[%emt 0:00:22]} Qb7 {[%emt 0:04:18]} 14. Qf3 {[%emt 0:00:21] White is better.} O-O {[%emt 0:00:47][%cal Bh8f8,Bf8c8,Bc8e8][%mdl 32]} 15. Rae1 {[%emt 0:04:39] [#] White is more active.} Rfc8 $146 {[%emt 0:05:58]} ({Predecessor:} 15... Rac8 16. g4 g6 17. g5 Nh5 18. Nd5 Bd8 19. Nf5 exf5 20. exf5 Nc5 21. b4 Nxf4+ 22. Qxf4 {1-0 Grubisic,I (2236)-Mijatovic,A (2210) SRB-chT2 West 2006 (3.6)}) 16. g4 {[%emt 0:02:35][%cal Bg3g4,Bg4g5][%mdl 32]} g6 {[%emt 0:01:16]} 17. g5 {[%emt 0:09:29]} Nh5 {[%emt 0:00:46] [#]} 18. Nd5 $2 {[%emt 0:19:29][%mdl 8192]} exd5 $19 {[%emt 0:04:19]} 19. exd5 {[%emt 0:00:13] [#]} (19. Nc6 $142 Bf6 20. Bxf6 Rxc6 21. exd5) 19... Bf8 $1 {[%emt 0:00:41]} 20. Nc6 {[%emt 0:16:56]} Re8 {[%emt 0:01:03]} 21. f5 {[%emt 0:01:04]} (21. Qc3 $2 Bg7 22. Qd2 Bxb2 23. Qxb2 Nc5 $19) 21... Ne5 {[%emt 0:01:04]} 22. Bxe5 {[%emt 0:04:04]} (22. Nxe5 {was called for.} dxe5 23. Bxe5) 22... dxe5 {[%emt 0:00:19]} 23. Nxe5 {[%emt 0:05:00]} Bd6 {[%emt 0:05:17]} 24. Ng4 {[%emt 0:01:21] [#]} Bb4 {[%emt 0:05:03]} (24... Nf4+ 25. Kh1 Rxe1 26. Rxe1 $14) (24... Rxe1 $1 $17 25. Rxe1 Bf8) 25. Nh6+ {[%emt 0:03:18]} Kh8 {[%emt 0:00:49]} 26. Rxe8+ {[%emt 0:01:57]} Rxe8 {[%emt 0:00:06]} 27. fxg6 {[%emt 0:00:38]} hxg6 {[%emt 0:01:58] White must now prevent ...Qe7.} (27... fxg6 $2 28. a3 (28. Nf7+ Kg7 $14) 28... Bxa3 29. Nf7+ Kg8 30. Qc3 Qxf7 31. Rxf7 Kxf7 32. b4 $18) 28. a3 {[%emt 0:01:52]} (28. Qxf7 $11 {was the only way to keep the balance.} Qxf7 29. Rxf7 (29. Nxf7+ Kg7 $15)) 28... Bf8 {[%emt 0:01:32]} (28... Bxa3 $17 {...Qe7 is the strong threat.} 29. Qc3+ f6) 29. Nxf7+ $2 {[%emt 0:01:12]} (29. Qxf7 $11 Qxf7 30. Nxf7+ Kg7 31. b4 (31. d6 Re2+ 32. Kf3 Re6 $11)) 29... Kh7 {[%emt 0:00:12]} 30. Ne5 {[%emt 0:00:34]} Qe7 {[%emt 0:03:33]} (30... Rxe5 $6 31. Qxf8 Rxg5+ 32. Kh1 $11) ({Black should play} 30... Qg7 $17 31. Ng4 Bxa3) 31. Qf7+ $11 {[%emt 0:01:34]} Qxf7 {[%emt 0:00:06]} 32. Nxf7 {[%emt 0:00:10]} (32. Rxf7+ $2 Kg8 33. Rxf8+ Kxf8 34. Nd7+ Ke7 35. Nxb6 Rf8 $19) 32... Re2+ {[%emt 0:01:06][%mdl 64] Deflection} 33. Kf3 {[%emt 0:02:34]} Rxh2 {[%emt 0:01:05] And now ...Rh3+ would win.} (33... Re7 $5 {[%cal Re7f7]} 34. Nd8 Ng7 $17) 34. d6 {[%emt 0:00:41]} Rh3+ {[%emt 0:02:10]} 35. Kf2 $1 {[%emt 0:01:47]} Rd3 {[%emt 0:01:18][%cal Oh5f4] Strongly threatening ...Nf4!} 36. Ke2 {[%emt 0:04:15]} Rxd6 {[%emt 0:00:24]} 37. Nxd6 {[%emt 0:00:02][%mdl 4096] Endgame KRN-KBN} Ng3+ {[%emt 0:00:14]} ({Much less strong is} 37... Bxd6 38. Rf7+ Kg8 39. Rb7 Bxa3 40. Rxb6 $16) 38. Kf2 {[%emt 0:00:06]} Nxf1 {[%emt 0:00:05]} 39. Ne4 {[%emt 0:00:06]} Bxa3 {[%emt 0:01:08][%cal Oh7g7]} 40. Kxf1 {[%emt 0:00:02] KB-KN} Kg7 {[%emt 0:00:17]} 41. Ke2 {[%emt 0:00:12]} Kf7 {[%emt 0:00:12]} 42. Kf3 {[%emt 0:00:57]} Ke6 $1 {[%emt 0:00:11]} 43. Kg4 {[%emt 0:00:18]} Bb2 {[%emt 0:03:46]} (43... a5 $15) 44. Nf2 {[%emt 0:00:52] The position is equal.} a5 {[%emt 0:07:02]} 45. Nd3 {[%emt 0:02:15]} Be5 {[%emt 0:00:23]} 46. Ne1 {[%emt 0:01:42]} Bd4 {[%emt 0:00:52]} 47. Nf3 {[%emt 0:00:33]} Bf2 {[%emt 0:00:17]} 48. Kf4 {[%emt 0:00:27]} Kd6 {[%emt 0:00:22]} 49. Ke4 {[%emt 0:00:40]} Kc5 {[%emt 0:00:23]} 50. Ne5 {[%emt 0:01:03] Threatens to win with Nd3+.} Bh4 {[%emt 0:00:17]} 51. Nxg6 {[%emt 0:00:16]} ({Of course not} 51. Kf4 Kb4 52. Nc6+ (52. Nxg6 $2 {perishes.} Bxg5+ 53. Kxg5 Kxb3 $19) 52... Kxb3) 51... Bxg5 {[%emt 0:00:04] ...Kb4 would be deadly.} 52. Kd3 {[%emt 0:00:20]} Kb4 {[%emt 0:00:12]} 53. Kc2 {[%emt 0:00:06]} a4 {[%emt 0:01:00]} 54. bxa4 {[%emt 0:00:02]} Kxc4 {[%emt 0:00:05]} 55. Ne5+ {[%emt 0:00:07]} Kb4 {[%emt 0:00:07]} 56. Nd7 {[%emt 0:00:06]} Kxa4 {[%emt 0:00:06]} 57. Nxb6+ {[%emt 0:00:04] Weighted Error Value: White=0.28 (precise) /Black=0.20 (precise)} 1/2-1/2

[Event "10th Cherry Blossom Classic 2023"]
[Site "Dulles"]
[Date "2023.05.25"]
[Round "1.18"]
[White "Slate, Kent"]
[Black "Zhukova, Natalia"]
[Result "1/2-1/2"]
[ECO "C09"]
[WhiteElo "1989"]
[BlackElo "2324"]
[Annotator "TA"]
[PlyCount "50"]
[EventDate "2023.05.24"]
[EventType "swiss"]
[EventCountry "USA"]
[SourceTitle "playchess.com"]
[Source "ChessBase"]
[SourceQuality "1"]
[TimeControl "5400+30"]

{[%evp 12,50,29,27,33,29,24,14,21,0,11,18,11,1,0,0,17,0,18,0,0,0,0,0,0,0,0,0,0,-6,0,0,0,0,0,0,0,0,0,-5,0]} 1. e4 {[%emt 0:00:12]} e6 {[%emt 0:00:16]} 2. d4 {[%emt 0:00:09]} d5 {[%emt 0:00:06]} 3. Nd2 {[%emt 0:00:33]} c5 {[%emt 0:00:27]} 4. Ngf3 {[%emt 0:00:41]} Nc6 {[%emt 0:00:47]} 5. exd5 {[%emt 0:01:40]} exd5 {[%emt 0:00:13]} 6. Bb5 {[%emt 0:00:37]} Qe7+ {[%emt 0:00:20] The modern move.} 7. Be2 {[%emt 0:04:11]} Qc7 {[%emt 0:00:14] C09: French Tarrasch: 3...c5 4 exd5 exd5 5 Ngf3 Nc6.} 8. O-O {[%emt 0:01:49]} Nf6 {[%emt 0:00:16]} 9. dxc5 {[%emt 0:02:19]} Bxc5 {[%emt 0:00:18] The position is equal.} 10. c3 {[%emt 0:03:31]} (10. Nb3 $5 {[%cal Rb3c5]} Bb6 11. Bg5 $11) 10... Be6 {[%emt 0:04:46]} 11. Nb3 {[%emt 0:03:11]} Bb6 {[%emt 0:00:19]} 12. Nbd4 {[%emt 0:04:51]} (12. Nfd4 {seems wilder.} O-O 13. Bg5 Ne4 14. Be3) 12... O-O {[%emt 0:00:28]} 13. h3 {[%emt 0:00:41]} Rae8 {[%emt 0:06:59]} 14. Be3 {[%emt 0:06:00] [#]} a6 $146 {[%emt 0:23:57]} ({Predecessor:} 14... Ne4 15. Re1 Qc8 16. Bf1 Bd7 17. Qb3 Be6 18. Rad1 Na5 19. Qc2 Nc4 20. Bxc4 Qxc4 {1-0 Rothebarth,A (2080)-Moraes,N (2244) Santarem Alter do Chao op 2017 (3)}) 15. Qb3 {[%emt 0:04:28]} Bxh3 {[%emt 0:15:28]} 16. gxh3 {[%emt 0:05:28]} Rxe3 $1 {[%emt 0:00:25][%mdl 64] [#] Remove Defender, Deflection} 17. fxe3 {[%emt 0:02:28]} Qg3+ {[%emt 0:00:08]} 18. Kh1 {[%emt 0:00:04]} Bc7 {[%emt 0:01:32]} 19. Bd3 $1 {[%emt 0:08:41] Threatens to win with Bf5.} (19. Qxb7 $2 Qxh3+ 20. Kg1 Qg3+ 21. Kh1 Nxd4 $19) 19... Qxh3+ {[%emt 0:01:14]} 20. Kg1 {[%emt 0:00:07] [#] And now Qc2 would win.} Qg3+ {[%emt 0:01:24]} 21. Kh1 {[%emt 0:00:12]} Qh3+ {[%emt 0:23:49]} (21... Ng4 $5 22. Qc2 $8 (22. Qxd5 Qh3+ 23. Kg1 Bh2+ 24. Kh1 Bf4+ {[%mdl 64] Discovered Attack} 25. Kg1 Bxe3+) 22... Qh3+ 23. Kg1 (23. Nh2 $2 Nxd4 24. Qg2 Qh6 $19) 23... Nxe3 $11) 22. Kg1 {[%emt 0:00:06] Strongly threatening Qc2.} Nxd4 {[%emt 0:03:10]} (22... Ng4 $5 23. Qc2 $8 (23. Qxd5 Bh2+ 24. Kh1 Bf4+ {[%mdl 64] Discovered Attack} 25. Kg1 Bxe3+) 23... Nxd4 24. cxd4 (24. Bxh7+ $2 Kh8 $19) 24... Nxe3 $11) 23. cxd4 {[%emt 0:04:41] Black must now prevent Qc2.} ({Of course not} 23. exd4 Qg4+ 24. Kh1 Qh5+ 25. Kg1 Re8 $17) 23... Qg3+ {[%emt 0:06:05]} (23... Ng4 $5 24. Qc2 $8 (24. Qxd5 {is a self mate.} Bh2+ 25. Kh1 Bf4+ {[%mdl 64] Discovered Attack} 26. Kg1 Bxe3+) 24... Nxe3 $11) 24. Kh1 {[%emt 0:00:07] Bf5 is the strong threat.} Qh3+ {[%emt 0:05:23]} (24... Ng4 $5 25. Qc2 $8 (25. Qxd5 Qh3+ 26. Kg1 Bh2+ 27. Kh1 Bf4+ {[%mdl 64] Discovered Attack} 28. Kg1 Bxe3+) 25... Qh3+ 26. Kg1 Nxe3 $11) 25. Kg1 {[%emt 0:00:05] Hoping for Qc2.} Qg3+ {[%emt 0:00:38] An uneventful encounter.   Weighted Error Value: White=0.06 (flawless) /Black=0.02 (flawless)} (25... Ng4 $5 26. Qc2 $8 (26. Qxd5 {gets mated.} Bh2+ 27. Kh1 Bf4+ {[%mdl 64] Discovered Attack} 28. Kg1 Bxe3+) 26... Nxe3 $11) 1/2-1/2

[Event "10th Cherry Blossom Classic 2023"]
[Site "Dulles"]
[Date "2023.05.25"]
[Round "1.19"]
[White "Sinha, Sahil"]
[Black "Diao, Matthew Guo"]
[Result "1-0"]
[ECO "E01"]
[WhiteElo "2317"]
[BlackElo "1973"]
[Annotator "TA"]
[PlyCount "73"]
[EventDate "2023.05.24"]
[EventType "swiss"]
[EventCountry "USA"]
[SourceTitle "playchess.com"]
[Source "ChessBase"]
[SourceQuality "1"]
[TimeControl "5400+30"]

{[%evp 23,73,12,0,7,30,4,5,-25,21,23,37,36,122,119,105,102,118,131,246,245,254,243,238,238,243,234,347,354,322,282,324,307,310,278,274,234,812,807,781,777,773,755,815,814,5351,5339,5231,5006,29959,5243,29996,29997]} 1. d4 {[%emt 0:00:01]} d5 {[%emt 0:00:05]} 2. c4 {[%emt 0:00:04]} c6 {[%emt 0:00:05]} 3. Nf3 {[%emt 0:00:07]} Nf6 {[%emt 0:00:08]} 4. Qc2 {[%emt 0:00:11]} e6 {[%emt 0:00:58]} 5. g3 {[%emt 0:00:57]} Nbd7 {[%emt 0:07:49]} 6. Bg2 {[%emt 0:00:24]} Bd6 {[%emt 0:01:32]} 7. O-O {[%emt 0:00:46]} O-O {[%emt 0:00:50]} 8. Nbd2 {[%emt 0:00:21]} Re8 {[%emt 0:09:30]} 9. Rd1 {[%emt 0:04:25]} Qe7 {[%emt 0:11:56]} 10. e4 {[%emt 0:02:26]} Nxe4 {[%emt 0:03:11]} 11. Nxe4 {[%emt 0:02:05]} dxe4 {[%emt 0:00:08]} 12. Qxe4 {[%emt 0:00:02]} e5 {[%emt 0:05:37]} 13. Re1 {[%emt 0:02:50] E01: Catalan: Early deviations.} Qf8 {[%emt 0:22:23]} 14. c5 {[%emt 0:06:46]} (14. Ng5 Nf6 15. Qh4 exd4 16. Rxe8 Qxe8 $15) (14. Qc2 {seems wilder.} Bb4 15. Ng5 f5 16. Rd1) 14... Bc7 {[%emt 0:05:58] [#]} 15. Qe2 $146 {[%emt 0:05:16] The position is equal.} (15. Ng5 Nf6 16. Qd3 Rd8 $15) ({Predecessor:} 15. Qd3 exd4 16. Rxe8 Qxe8 17. Qxd4 a5 18. Bg5 Nf8 19. Qa4 Qe2 20. Bd2 Be6 21. Re1 Qc4 22. Qxc4 Bxc4 23. b3 Be6 24. Nd4 Bd8 25. Nxe6 {½-½ Gerbich,V (2450)-Evtushenko,S (2480) Karelin Memorial email 2011}) 15... Nf6 {[%emt 0:03:51]} (15... e4 $142) 16. dxe5 $11 {[%emt 0:04:05]} Bg4 {[%emt 0:01:30][%cal Oe8e5]} 17. Qc2 {[%emt 0:03:26]} Nd7 {[%emt 0:05:42]} ({Black should play} 17... Bxf3 $14 18. Bxf3 Bxe5) 18. Ng5 $16 {[%emt 0:05:54][%csl Gg5][%cal Rc2h7]} g6 {[%emt 0:02:00] [#]} 19. e6 $1 $36 {[%emt 0:06:07][%mdl 2560] White is in control. White is more active.} fxe6 {[%emt 0:04:45]} (19... Bxe6 20. Nxe6) 20. Qc4 {[%emt 0:03:03][%csl LRe6,LRg4]} h5 {[%emt 0:04:53] [#]} (20... Bf5 $16 {is a better defense.}) 21. h3 $1 $18 {[%emt 0:03:11]} (21. Nxe6 $2 {loses.} Qf7 22. Qb4 Bxe6 $19) 21... Bf5 {[%emt 0:00:12]} 22. g4 {[%emt 0:01:07]} (22. Nxe6 $2 Qf7 23. Bh6 Bxe6 $19) 22... Ne5 {[%emt 0:03:10]} 23. Rxe5 {[%emt 0:06:10]} Bxe5 {[%emt 0:00:07]} 24. gxf5 {[%emt 0:00:02]} Qxf5 {[%emt 0:01:40]} (24... gxf5 {was necessary.} 25. Qe2 (25. Nxe6 $2 {is the wrong capture.} Qf7 $19) 25... Qg7 26. Qxh5 Re7) 25. Be3 {[%emt 0:04:34]} Rad8 {[%emt 0:01:22]} 26. Re1 {[%emt 0:05:10]} Kg7 {[%emt 0:01:43]} 27. Be4 {[%emt 0:09:53]} Qf6 {[%emt 0:00:26]} 28. Bc2 {[%emt 0:01:51] A strong pair of Bishops.} Rd5 {[%emt 0:01:43]} 29. Qe4 {[%emt 0:04:18]} Qf5 $2 {[%emt 0:00:43]} (29... Bxb2 30. Qg2 Kh8) 30. Qb4 {[%emt 0:02:23][%csl LRb7,LRf5]} Qf6 {[%emt 0:00:52]} 31. Qxb7+ {[%emt 0:01:25]} Re7 {[%emt 0:00:10]} 32. Qxc6 {[%emt 0:00:03]} Bf4 {[%emt 0:00:55]} 33. Bxf4 {[%emt 0:00:34][%cal Rg5e6][%mdl 64] Deflection} Qxf4 {[%emt 0:00:11]} 34. Nxe6+ {[%emt 0:01:11]} (34. Rxe6 {leads to mate.} Rxg5+ 35. Kf1 Qc4+ 36. Ke1 Rxe6+) 34... Rxe6 {[%emt 0:00:02]} 35. Qxe6 {[%emt 0:00:09]} Rg5+ {[%emt 0:00:53]} 36. Kf1 {[%emt 0:00:04] Threatening mate with Qd7+.} Qd2 {[%emt 0:00:30]} 37. Qe7+ {[%emt 0:00:21] White took control after the opening.   Weighted Error Value: White=0.11 (very precise) /Black=0.81} 1-0

[Event "10th Cherry Blossom Classic 2023"]
[Site "Dulles"]
[Date "2023.05.25"]
[Round "1.20"]
[White "Ling, Evan"]
[Black "Paul, Justin"]
[Result "1/2-1/2"]
[ECO "A50"]
[WhiteElo "1952"]
[BlackElo "2314"]
[Annotator "TA"]
[PlyCount "71"]
[EventDate "2023.05.24"]
[EventType "swiss"]
[EventCountry "USA"]
[SourceTitle "playchess.com"]
[Source "ChessBase"]
[SourceQuality "1"]
[TimeControl "5400+30"]

{[%evp 9,71,9,14,8,13,0,16,9,10,0,19,8,13,7,23,-47,-47,-49,-49,-39,-40,-56,-60,-84,-81,-69,-70,-92,-88,-124,-92,-95,-93,-139,-85,-79,-80,-91,-75,-76,-62,-112,-104,-110,-114,-129,-106,-104,-70,-99,-41,-40,-45,-41,-8,-9,-9,-9,-8,-5,8,8,8,6]} 1. d4 {[%emt 0:00:03]} Nf6 {[%emt 0:00:17]} 2. c4 {[%emt 0:00:04]} e6 {[%emt 0:00:11]} 3. Bf4 {[%emt 0:00:04]} d5 {[%emt 0:00:48]} 4. cxd5 {[%emt 0:00:06]} exd5 {[%emt 0:00:07]} 5. e3 {[%emt 0:00:05]} Bd6 {[%emt 0:00:41]} 6. Bxd6 {[%emt 0:00:07] A50: Queen's Fianchetto Defence (1 d4 Nf6 2 c4 b6).} Qxd6 {[%emt 0:00:08]} 7. Bd3 {[%emt 0:00:04]} O-O {[%emt 0:01:11]} 8. Nc3 {[%emt 0:00:04]} Re8 {[%emt 0:02:10]} 9. h3 {[%emt 0:00:09] [#]} Nbd7 $146 {[%emt 0:05:21]} ({Predecessor:} 9... c6 10. Qc2 Nbd7 11. Nf3 Nf8 12. O-O Ng6 13. Rab1 Bd7 14. b4 a6 15. Na4 Rad8 16. Nc5 Bc8 17. a4 Nd7 18. Bf5 Qf6 19. Bxd7 Bxd7 20. Nxd7 Rxd7 21. b5 axb5 22. axb5 h6 {1-0 Banusz,T (2611)-Materia,M (2409) Biel HTO 55th 2022 (5)}) 10. Qc2 {[%emt 0:00:18] With the idea Nb5.} c5 {[%emt 0:02:14]} 11. Nf3 {[%emt 0:06:25]} c4 {[%emt 0:05:26]} 12. Bf5 {[%emt 0:00:06]} (12. Be2 $11) 12... g6 $15 {[%emt 0:01:24]} 13. Bxd7 {[%emt 0:01:39]} Bxd7 {[%emt 0:00:08]} 14. O-O {[%emt 0:00:04]} b5 {[%emt 0:04:19][%cal Bb7b5,Bb5b4][%mdl 32]} 15. Ne5 {[%emt 0:02:45]} Bf5 {[%emt 0:03:40]} 16. Qd2 {[%emt 0:00:19]} ({But not} 16. Nxb5 $2 Qb4 17. Qe2 Qxb5 $19) 16... b4 {[%emt 0:07:01]} 17. Ne2 {[%emt 0:17:29]} Ne4 {[%emt 0:09:57]} 18. Qe1 {[%emt 0:00:05]} f6 {[%emt 0:00:10]} 19. Nf3 {[%emt 0:00:15]} Rec8 {[%emt 0:07:05]} 20. Nd2 {[%emt 0:05:32]} Ng5 {[%emt 0:01:33]} 21. Nf4 {[%emt 0:00:04] [#]} (21. Qc1 $142) 21... Ne6 {[%emt 0:04:29]} ({Weaker is} 21... c3 22. bxc3 bxc3 23. Nb3 $11) ({Black should try} 21... a5 $1 22. f3 Rab8) 22. Nxe6 $17 {[%emt 0:00:25]} Qxe6 {[%emt 0:00:42] White is weak on the light squares} 23. Qd1 {[%emt 0:01:54]} a5 {[%emt 0:06:11][%cal Ba7a5,Ba5b4,Bb4c3][%mdl 32]} 24. Re1 {[%emt 0:00:05][%cal Oe3e4]} g5 {[%emt 0:04:52]} 25. a3 {[%emt 0:03:16]} (25. e4 $15 dxe4 26. Nf1) 25... Rab8 {[%emt 0:05:55] Threatens to win with ...c3.} 26. axb4 {[%emt 0:04:26]} axb4 {[%emt 0:01:26]} 27. Qa4 {[%emt 0:01:58]} c3 {[%emt 0:07:01]} 28. bxc3 {[%emt 0:00:09]} bxc3 {[%emt 0:00:05]} 29. Nb3 {[%emt 0:01:11][%cal Bd2b3,Bb3c5,Bc5e6][%mdl 32]} Bc2 {[%emt 0:01:00]} (29... c2 $17 30. Nc5 Qc6 31. Qxc6 Rxc6) 30. Nc5 $1 $15 {[%emt 0:00:45][%mdl 64] [#] Discovered Attack} Bxa4 {[%emt 0:00:43]} 31. Nxe6 {[%emt 0:00:07]} Rc4 {[%emt 0:01:03]} 32. Nc5 {[%emt 0:02:17] The position is equal.} Be8 {[%emt 0:00:39]} 33. Rec1 {[%emt 0:02:04]} c2 {[%emt 0:07:07] ...Bg6 is the strong threat.} 34. Kf1 $1 {[%emt 0:02:18]} f5 {[%emt 0:01:52]} 35. Ke2 {[%emt 0:00:31]} f4 {[%emt 0:00:16]} 36. Kd2 {[%emt 0:00:24] Weighted Error Value: White=0.13 (very precise) /Black=0.10 (very precise)} 1/2-1/2